bitfinex-derivatives/quotes_SOLF0:USTF0_20250312
["timestamp","ask_amount","ask_price","bid_price","bid_amount"]
[1741813196379,0.05905415,125.19,125.17,0.05810504]
[1741813196579,7.9899,125.18,125.17,0.05810504]
[1741813196976,18.66263237,125.19,125.12,247.6334]
[1741813197179,18.60357822,125.19,125.12,282.1934]
[1741813197375,4.0921,125.18,125.12,282.1934]
[1741813197571,7.9916,125.16,125.12,282.1934]
[1741813198178,0.05137736,125.15,125.13,0.04873476]
[1741813198372,8.04317736,125.15,125.13,0.04873476]
[1741813199480,0.05137736,125.15,125.13,0.04873476]
[1741813203575,7.9924,125.14,125.13,0.04873476]
[1741813203883,0.05137736,125.15,125.13,0.04873476]
[1741813205184,8.04347736,125.15,125.13,0.04873476]
[1741813205987,0.05137736,125.15,125.13,8.04173476]
[1741813207614,0.05137736,125.15,125.13,0.04873476]
[1741813208324,7.9924,125.14,125.13,0.04873476]
[1741813208620,0.05137736,125.15,125.13,0.04873476]
[1741813208818,0.05137736,125.15,125.14,7.9924]
[1741813209013,0.05137736,125.15,125.14,42.1324]
[1741813211119,0.05137736,125.15,125.14,34.14]
[1741813213606,0.05137736,125.15,125.13,0.04873476]
[1741813214213,7.9924,125.14,125.13,0.04873476]
[1741813215513,0.05137736,125.15,125.13,0.04873476]
[1741813215805,0.05137736,125.15,125.13,8.04163476]
[1741813217295,0.05137736,125.15,125.13,0.04873476]
[1741813218289,0.05137736,125.15,125.13,8.04153476]
[1741813218492,0.05137736,125.15,125.13,0.04873476]
[1741813218691,0.05137736,125.15,125.14,33.96]
[1741813219288,0.05137736,125.15,125.14,41.9524]
[1741813219895,4.2163,125.2,125.14,33.96]
[1741813220089,4.2163,125.2,125.14,52.56357822]
[1741813220291,18.60357822,125.23,125.14,52.56357822]
[1741813220495,7.9874,125.22,125.14,52.56357822]
[1741813220690,7.9874,125.22,125.18,7.9896]
[1741813220896,7.987,125.23,125.18,33.98]
[1741813221097,0.05400896,125.21,125.19,0.05708398]
[1741813221292,0.05400896,125.21,125.2,7.9886]
[1741813221795,0.05400896,125.21,125.19,0.05708398]
[1741813223097,0.05400896,125.21,125.19,8.04608398]
[1741813223300,0.05400896,125.21,125.19,0.05708398]
[1741813223699,0.05400896,125.21,125.2,7.9886]
[1741813225001,18.60357822,125.29,125.23,7.9864]
[1741813225201,18.60357822,125.29,125.23,41.7664]
[1741813225807,18.60357822,125.29,125.23,33.78]
[1741813226102,1.38952664,125.35,125.27,18.60357822]
[1741813226404,0.05697,125.32,125.3,7.9818]
[1741813226603,4.233,125.36,125.31,36.04]
[1741813226902,0.05765515,125.32,125.31,36.04]
[1741813227102,0.05098115,125.33,125.31,36.04]
[1741813227406,0.05098115,125.33,125.3,0.05593361]
[1741813228501,8.115e-05,125.33,125.3,29.76207271]
[1741813228807,8.115e-05,125.33,125.32,37.6871391]
[1741813229305,8.115e-05,125.33,125.3,8.03763361]
[1741813229701,8.115e-05,125.33,125.3,0.05593361]
[1741813230500,8.115e-05,125.33,125.31,7.9814]
[1741813231006,8.115e-05,125.33,125.3,0.05593361]
[1741813231204,8.115e-05,125.33,125.32,7.981]
[1741813231605,8.115e-05,125.33,125.32,37.6871391]
[1741813231806,8.115e-05,125.33,125.32,7.981]
[1741813233198,8.115e-05,125.33,125.31,7.9813]
[1741813233607,8.115e-05,125.33,125.32,7.981]
[1741813234507,4.2092,125.41,125.35,7.9789]
[1741813234703,4.2092,125.41,125.36,39.08]
[1741813234910,4.2092,125.41,125.33,39.06]
[1741813235206,7.9784,125.36,125.33,39.06]
[1741813235704,8.03559575,125.36,125.33,39.11636466]
[1741813235908,8.03559575,125.36,125.33,0.05636466]
[1741813236408,0.05719575,125.36,125.33,0.05636466]
[1741813238209,0.05719575,125.36,125.35,7.979]
[1741813239811,239.46,125.5,125.34,29.7061391]
[1741813240007,3.9191,125.44,125.36,29.7061391]
[1741813240213,3.9191,125.44,125.37,38.82]
[1741813240616,239.46,125.5,125.38,29.7061391]
[1741813240617,7.9723,125.46,125.38,29.7061391]
[1741813240810,7.9723,125.46,125.42,7.9742]
[1741813241114,0.05496545,125.43,125.42,38.78]
[1741813241416,4.2017,125.47,125.42,38.78]
[1741813241627,0.05150391,125.44,125.41,0.05761605]
[1741813242124,7.9745,125.43,125.41,0.05761605]
[1741813242323,0.05150391,125.44,125.41,0.05761605]
[1741813243924,7.9744,125.43,125.41,0.05761605]
[1741813244226,0.05150391,125.44,125.41,0.05761605]
[1741813244422,0.05150391,125.44,125.36,46.5783]
[1741813244720,68.2461391,125.46,125.36,38.6]
[1741813244924,7.9756,125.41,125.36,46.638]
[1741813245518,0.05885136,125.4,125.37,8.02999309]
[1741813245725,4.2017,125.47,125.38,29.7061391]
[1741813246120,4.2017,125.47,125.42,7.9741]
[1741813246321,4.2017,125.47,125.42,46.5541]
[1741813247022,0.05131199,125.46,125.43,0.06087007]
[1741813247521,0.05131199,125.46,125.45,7.9727]
[1741813248534,68.1861391,125.54,125.43,0.06087007]
[1741813248535,210.7061391,125.64,125.43,0.06087007]
[1741813248829,8.3036,125.57,125.52,29.7061391]
[1741813249023,8.3036,125.57,125.53,43.2]
[1741813249420,4.136,125.57,125.54,7.9665]
[1741813249728,4.136,125.57,125.53,43.2]
[1741813250028,4.1949293,125.57,125.54,0.06056159]
[1741813250428,0.0589293,125.57,125.55,7.9663]
[1741813250626,0.0589293,125.57,125.54,0.06056159]
[1741813251423,0.0589293,125.57,125.54,8.02706159]
[1741813252028,0.0589293,125.57,125.54,0.06056159]
[1741813254326,0.0589293,125.57,125.55,7.9663]
[1741813255025,2.93e-05,125.57,125.55,29.7061391]
[1741813255226,4.0328,125.61,125.55,29.7061391]
[1741813255430,4.0328,125.61,125.56,7.9656]
[1741813255729,4.0328,125.61,125.57,45.92]
[1741813255931,11.9958,125.61,125.57,45.92]
[1741813256230,11.9958,125.61,125.55,7.9659]
[1741813256429,0.06046687,125.6,125.58,0.05882879]
[1741813256632,0.06046687,125.6,125.54,45.9]
[1741813256929,0.06046687,125.6,125.5,45.9]
[1741813257130,7.9653,125.57,125.51,7.9684]
[1741813257337,29.7061391,125.59,125.5,45.9]
[1741813257529,3.8717,125.56,125.5,45.9]
[1741813257828,4.1061,125.55,125.53,0.05322109]
[1741813258633,7.967,125.54,125.53,0.05322109]
[1741813258837,4.1061,125.55,125.53,0.05322109]
[1741813261329,0.05719462,125.56,125.55,7.9663]
[1741813261639,0.05719462,125.56,125.54,45.76]
[1741813261835,0.05719462,125.56,125.54,75.4661391]
[1741813262031,3.9864,125.6,125.54,75.4661391]
[1741813262236,3.9864,125.6,125.56,29.7061391]
[1741813262436,3.9864,125.6,125.59,7.9638]
[1741813262739,4.1316,125.65,125.58,75.5061391]
[1741813262932,8.337,125.65,125.58,75.5061391]
[1741813263133,7.961,125.64,125.6,7.9628]
[1741813263340,0.05504414,125.63,125.6,0.05297965]
[1741813264341,0.05504414,125.63,125.6,8.01597965]
[1741813265443,0.05504414,125.63,125.61,7.9625]
[1741813265639,0.05504414,125.63,125.6,29.75911875]
[1741813266040,0.05504414,125.63,125.6,37.72201875]
[1741813266339,0.05504414,125.63,125.6,29.75911875]
[1741813266541,0.05504414,125.63,125.6,37.72191875]
[1741813266843,0.05504414,125.63,125.6,29.75911875]
[1741813267142,0.05504414,125.63,125.6,0.05297965]
[1741813267535,0.05504414,125.63,125.61,7.9621]
[1741813267840,0.05504414,125.63,125.6,29.75911875]
[1741813269339,0.05504414,125.63,125.6,37.72181875]
[1741813269732,7.9614,125.63,125.6,37.72181875]
[1741813270135,4.2054,125.65,125.6,29.75911875]
[1741813270941,0.05844315,125.64,125.61,7.9622]
[1741813271143,0.05844315,125.64,125.62,44.84]
[1741813271542,0.05844315,125.64,125.62,52.8018]
[1741813272044,0.05844315,125.64,125.62,44.84]
[1741813272339,7.9617,125.63,125.6,0.05297965]
[1741813272544,0.05844315,125.64,125.6,0.05297965]
[1741813272740,0.05844315,125.64,125.54,62.78071932]
[1741813272938,33.9115391,125.65,125.54,77.63458022]
[1741813273142,29.7061391,125.63,125.54,33.07458022]
[1741813273343,7.9656,125.57,125.54,33.07458022]
[1741813273743,29.7061391,125.61,125.54,33.07458022]
[1741813273942,0.05410656,125.57,125.54,33.13046161]
[1741813274141,0.05410656,125.57,125.54,1.05396161]
[1741813274439,0.05410656,125.57,125.48,106.28028359]
[1741813274638,29.7061391,125.57,125.48,32.13414449]
[1741813274946,29.7061391,125.53,125.48,32.13414449]
[1741813275158,74.0661391,125.55,125.48,32.13414449]
[1741813275338,44.36,125.55,125.48,32.13414449]
[1741813275538,0.05630853,125.53,125.5,0.05993671]
[1741813275738,8.02450853,125.53,125.5,0.05993671]
[1741813275941,0.05630853,125.53,125.5,0.05993671]
[1741813276447,7.9687,125.52,125.5,0.05993671]
[1741813277044,7.9687,125.52,125.46,129.72198531]
[1741813277045,73.8461391,125.51,125.46,129.72198531]
[1741813277253,29.7061391,125.49,125.46,129.72198531]
[1741813277441,29.7061391,125.49,125.46,123.39718531]
[1741813278046,37.6775391,125.47,125.46,1.9954209]
[1741813278352,73.7261391,125.47,125.39,4.0111]
[1741813278552,73.7261391,125.47,125.38,85.96908841]
[1741813279341,73.7261391,125.47,125.37,242.7916]
[1741813279541,0.05838782,125.44,125.41,0.05207101]
[1741813279746,7.9746,125.42,125.41,0.05207101]
[1741813280552,8.03178782,125.44,125.41,0.05207101]
[1741813280850,0.05838782,125.44,125.41,0.05207101]
[1741813281553,7.9746,125.42,125.41,0.05207101]
[1741813282354,7.9762,125.4,125.35,4.0111]
[1741813282946,73.2861391,125.43,125.35,4.0111]
[1741813282947,7.9754,125.41,125.35,4.0111]
[1741813283252,7.9754,125.41,125.35,11.9901]
[1741813283454,0.06125208,125.39,125.37,0.05556115]
[1741813285257,43.22,125.47,125.38,29.7061391]
[1741813285852,43.22,125.47,125.37,43.22]
[1741813286258,7.9735,125.44,125.38,7.9765]
[1741813286557,0.05052672,125.43,125.41,0.05305663]
[1741813289053,0.05052672,125.43,125.41,8.02795663]
[1741813289257,0.05052672,125.43,125.41,0.05305663]
[1741813289563,0.05052672,125.43,125.42,7.9746]
[1741813289861,0.05052672,125.43,125.41,0.05305663]
[1741813290661,0.05052672,125.43,125.41,8.02795663]
[1741813290863,0.05052672,125.43,125.41,0.05305663]
[1741813291260,0.05052672,125.43,125.42,7.9746]
[1741813294066,0.4854,125.52,125.42,46.4905]
[1741813294265,30.1311391,125.54,125.42,46.4905]
[1741813294266,42.5295,125.53,125.42,46.4905]
[1741813294564,0.425,125.54,125.43,29.7061391]
[1741813294769,311.0261391,125.55,125.43,29.7061391]
[1741813294964,42.06,125.54,125.48,7.9703]
[1741813295262,0.05047548,125.5,125.48,0.05665719]
[1741813296168,0.05047548,125.5,125.48,8.02725719]
[1741813296463,0.05047548,125.5,125.48,0.05665719]
[1741813297263,239.24,125.55,125.48,0.05665719]
[1741813297464,247.2065,125.55,125.48,0.05665719]
[1741813297763,7.9665,125.55,125.48,0.05665719]
[1741813297959,29.7061391,125.57,125.48,0.05665719]
[1741813298165,29.7061391,125.57,125.47,4.1603]
[1741813298166,7.9674,125.54,125.47,4.1603]
[1741813298464,71.5061391,125.57,125.5,7.9691]
[1741813298766,71.5061391,125.57,125.47,33.8664391]
[1741813298966,0.05866378,125.55,125.52,0.05253456]
[1741813299672,7.967,125.54,125.52,0.05253456]
[1741813300062,7.9674,125.54,125.52,0.05253456]
[1741813300262,0.05866378,125.55,125.52,0.05253456]
[1741813300666,8.02526378,125.55,125.52,0.05253456]
[1741813301067,0.05866378,125.55,125.52,0.05253456]
[1741813302267,7.9673,125.54,125.52,0.05253456]
[1741813302767,7.9676,125.53,125.52,0.05253456]
[1741813304872,7.9671,125.54,125.52,0.05253456]
[1741813305173,0.05866378,125.55,125.52,0.05253456]
[1741813305674,7.9673,125.54,125.52,0.05253456]
[1741813305969,7.9676,125.53,125.52,0.05253456]
[1741813306173,0.05866378,125.55,125.52,0.05253456]
[1741813307866,7.9676,125.53,125.52,0.05253456]
[1741813308174,40.7,125.53,125.46,4.3172]
[1741813308371,7.9689,125.51,125.47,7.9713]
[1741813308575,40.7,125.53,125.46,4.3172]
[1741813309474,7.9698,125.5,125.48,0.05853585]
[1741813309667,0.0554586,125.51,125.48,0.05853585]
[1741813310564,7.9701,125.49,125.48,0.05853585]
[1741813310774,0.0554586,125.51,125.48,0.05853585]
[1741813312675,7.9695,125.5,125.48,0.05853585]
[1741813313078,0.0554586,125.51,125.48,0.05853585]
[1741813313284,7.97,125.5,125.48,0.05853585]
[1741813313979,0.0554586,125.51,125.48,0.05853585]
[1741813314381,8.0246586,125.51,125.48,0.05853585]
[1741813315983,0.0554586,125.51,125.48,8.02893585]
[1741813316380,0.0554586,125.51,125.48,0.05853585]
[1741813316581,16.2982,125.59,125.48,0.05853585]
[1741813316582,12.90996436,125.62,125.5,59.4122782]
[1741813316785,12.90996436,125.62,125.53,29.7061391]
[1741813317086,62.49632389,125.63,125.54,4.1083]
[1741813317479,29.7061391,125.6,125.54,4.1083]
[1741813317682,37.72875501,125.6,125.57,0.05353505]
[1741813317879,29.7061391,125.6,125.5,51.8573]
[1741813318085,29.7061391,125.6,125.5,43.8883]
[1741813318277,29.7061391,125.57,125.5,43.8883]
[1741813318481,69.4061391,125.57,125.5,43.8883]
[1741813318787,77.3712391,125.57,125.5,4.1083]
[1741813319086,0.05310978,125.55,125.52,0.0563645]
[1741813322188,69.05924888,125.55,125.52,0.0563645]
[1741813322592,7.9674,125.54,125.52,0.0563645]
[1741813322886,69.05924888,125.55,125.52,0.0563645]
[1741813323093,39.35310978,125.55,125.52,0.0563645]
[1741813323285,7.9675,125.54,125.52,0.0563645]
[1741813323488,39.35310978,125.55,125.52,0.0563645]
[1741813324388,0.05310978,125.55,125.52,0.0563645]
[1741813328196,38.74,125.65,125.53,57.26427957]
[1741813328389,15.18443058,125.66,125.57,18.50427957]
[1741813328588,18.50427957,125.67,125.62,7.9618]
[1741813328795,271.87018479,125.68,125.61,18.50427957]
[1741813329087,271.87018479,125.68,125.63,8.01090911]
[1741813329088,0.06081577,125.66,125.63,8.01090911]
[1741813329286,0.06081577,125.66,125.63,0.05020911]
[1741813329692,0.06081577,125.66,125.64,7.9606]
[1741813329892,0.06081577,125.66,125.63,0.05020911]
[1741813333895,7.96,125.65,125.63,0.05020911]
[1741813334398,0.06081577,125.66,125.63,0.05020911]
[1741813334600,7.9606,125.64,125.63,0.05020911]
[1741813336492,7.9637,125.6,125.58,4.369]
[1741813336893,7.9637,125.6,125.55,38.08]
[1741813337091,7.9637,125.6,125.55,42.3888]
[1741813337603,7.9637,125.6,125.56,0.05789858]
[1741813337799,8.01437098,125.59,125.56,0.05789858]
[1741813338200,0.05057098,125.59,125.56,0.05789858]
[1741813338805,8.01447098,125.59,125.56,0.05789858]
[1741813339198,0.05057098,125.59,125.56,0.05789858]
[1741813339499,8.01477098,125.59,125.56,0.05789858]
[1741813342198,0.05057098,125.59,125.57,29.57360145]
[1741813342404,276.86,125.66,125.6,7.9631]
[1741813342805,276.86,125.66,125.57,29.57360145]
[1741813342806,7.961,125.64,125.58,37.88]
[1741813343005,7.961,125.64,125.59,7.9636]
[1741813343299,7.961,125.64,125.58,37.88]
[1741813343502,0.05659911,125.63,125.6,8.01419896]
[1741813343704,8.5402,125.69,125.61,4.0708]
[1741813343898,37.82,125.7,125.61,4.0708]
[1741813344100,7.9602,125.65,125.61,4.0708]
[1741813344302,67.39360145,125.7,125.61,4.0708]
[1741813344607,7.9604,125.65,125.61,4.0708]
[1741813344798,67.39360145,125.7,125.61,4.0708]
[1741813344999,0.05557646,125.64,125.62,0.05174177]
[1741813345203,0.05557646,125.64,125.61,4.0708]
[1741813345204,7.959,125.67,125.63,7.9613]
[1741813345404,0.05299608,125.64,125.63,7.9613]
[1741813345703,7.9573,125.7,125.65,7.9596]
[1741813345903,38.0,125.71,125.62,37.94]
[1741813346103,4.2865,125.73,125.63,29.57360145]
[1741813346302,7.9564,125.71,125.63,29.57360145]
[1741813346705,0.05164032,125.68,125.66,0.05259725]
[1741813347007,5.92653682,125.77,125.67,29.57360145]
[1741813347300,32.79018479,125.78,125.71,29.57360145]
[1741813347509,32.79018479,125.78,125.72,38.34]
[1741813348302,32.79018479,125.78,125.74,0.05869286]
[1741813348303,0.05374564,125.76,125.74,0.05869286]
[1741813349408,7.9537,125.75,125.74,0.05869286]
[1741813349700,0.05374564,125.76,125.74,0.05869286]
[1741813350604,38.6,125.81,125.74,0.05869286]
[1741813350793,38.6,125.81,125.74,4.04439286]
[1741813350999,7.9522,125.78,125.74,4.04439286]
[1741813351609,0.05177704,125.77,125.74,4.04439286]
[1741813351805,8.00427704,125.77,125.74,4.04439286]
[1741813352401,7.9532,125.76,125.74,0.05869286]
[1741813353107,0.05177704,125.77,125.74,0.05869286]
[1741813353305,7.9537,125.75,125.74,0.05869286]
[1741813353507,7.9537,125.75,125.74,0.00812188]
[1741813353905,300.67850859,125.97,125.77,214.0]
[1741813354104,538.44028342,126.07,125.96,59.1472029]
[1741813354302,426.29744316,126.02,126.01,37.51090145]
[1741813354508,426.29744316,126.02,126.01,29.57360145]
[1741813354708,426.29744316,126.02,125.99,29.57360145]
[1741813355009,426.35688348,126.02,125.99,29.63188643]
[1741813355205,434.30688348,126.02,125.99,29.63188643]
[1741813355510,426.35688348,126.02,125.99,29.63188643]
[1741813356208,426.35688348,126.02,125.99,0.05828498]
[1741813356709,426.35688348,126.02,125.99,7.99618498]
[1741813356911,426.35688348,126.02,125.99,0.05828498]
[1741813357104,0.05944032,126.02,126.0,262.86494329]
[1741813357407,0.05944032,126.02,126.01,49.9173]
[1741813358910,0.05944032,126.02,126.01,41.98]
[1741813359206,0.05944032,126.02,126.01,168.50635734]
[1741813359411,0.05944032,126.02,126.01,168.32635734]
[1741813359608,0.05944032,126.02,126.01,126.52635734]
[1741813360406,0.05944032,126.02,126.01,631.09139564]
[1741813360609,47.68,126.02,126.01,631.09139564]
[1741813360819,47.73742856,126.06,126.01,631.09139564]
[1741813361017,47.68,126.02,126.01,631.09139564]
[1741813361410,95.4,126.02,126.01,631.09139564]
[1741813362015,0.83968971,126.02,126.01,631.09139564]
[1741813362216,0.0569523,126.03,126.01,631.09139564]
[1741813362513,47.68,126.02,126.01,631.09139564]
[1741813362914,0.83968971,126.02,126.01,631.09139564]
[1741813363216,0.81968971,126.02,126.01,631.09139564]
[1741813364219,47.68,126.02,126.01,631.09139564]
[1741813364519,47.73742856,126.03,126.01,631.09139564]
[1741813364719,47.68,126.02,126.01,631.09139564]
[1741813364921,47.68,126.02,126.01,683.68954685]
[1741813365121,39.73,126.02,126.01,683.68954685]
[1741813365322,0.05679391,126.03,126.01,683.68954685]
[1741813365623,95.41742856,126.02,126.01,683.68954685]
[1741813365918,95.41742856,126.02,126.01,755.42364133]
[1741813366112,47.73742856,126.02,126.01,755.42364133]
[1741813367522,47.73742856,126.02,126.0,0.05925397]
[1741813367723,47.68,126.01,126.0,0.05925397]
[1741813367917,47.68,126.01,126.0,7.99715397]
[1741813368124,7.95,126.01,126.0,0.05925397]
[1741813368424,47.68,126.01,126.0,0.05925397]
[1741813371330,47.68,126.01,126.0,7.99715397]
[1741813371526,0.05679391,126.03,126.0,0.05925397]
[1741813371729,47.68,126.01,126.0,0.05925397]
[1741813372133,0.05679391,126.03,126.0,0.05925397]
[1741813372431,7.95,126.01,126.0,0.05925397]
[1741813372631,7.95,126.01,126.0,7.99715397]
[1741813374933,47.68,126.01,126.0,7.99715397]
[1741813376932,47.68,126.01,125.93,310.83061424]
[1741813377134,29.40285275,126.02,125.93,310.83061424]
[1741813377333,35.4647,126.0,125.93,340.23346699]
[1741813377733,241.9379127,126.05,126.02,7.9362]
[1741813377939,35.4647,126.01,125.99,40.44]
[1741813378335,35.4647,126.01,125.99,40.49646368]
[1741813378539,35.52233364,126.01,125.99,40.49646368]
[1741813379536,35.52233364,126.01,126.0,7.9379]
[1741813380941,35.52233364,126.01,125.99,40.49646368]
[1741813380942,35.52233364,126.01,125.99,48.43476368]
[1741813381142,35.4647,126.0,125.99,48.43476368]
[1741813383239,0.05763364,126.01,126.0,7.9379]
[1741813386247,271.93455275,126.06,126.05,7.9347]
[1741813386248,4.3517,126.06,126.05,7.9347]
[1741813386945,39.8164,126.06,126.03,47.5957]
[1741813387147,35.4647,126.04,126.03,47.5957]
[1741813387347,35.4647,126.04,126.03,47.64660295]
[1741813387547,4.40409113,126.06,126.03,47.64660295]
[1741813387747,35.4647,126.04,126.03,47.64660295]
[1741813388138,4.40409113,126.06,126.03,47.64660295]
[1741813388342,35.4647,126.04,126.03,47.64660295]
[1741813388542,35.4647,126.05,126.03,47.64660295]
[1741813388942,4.40409113,126.06,126.03,39.71090295]
[1741813389248,35.4647,126.05,126.03,39.71090295]
[1741813390039,35.4647,126.04,126.03,39.71090295]
[1741813390539,4.40409113,126.06,126.03,39.71090295]
[1741813390750,35.4647,126.04,126.03,39.71090295]
[1741813390953,35.4647,126.05,126.03,39.71090295]
[1741813391151,0.05239113,126.06,126.03,39.71090295]
[1741813392252,35.4647,126.05,126.03,39.71090295]
[1741813392452,35.4647,126.04,126.03,39.71090295]
[1741813392853,35.4647,126.04,126.03,0.05090295]
[1741813394551,35.4647,126.04,126.01,31.04970657]
[1741813394752,35.4647,126.02,126.01,31.04970657]
[1741813395151,37.33725275,126.06,126.01,38.98640657]
[1741813395351,35.4647,126.02,126.01,38.98640657]
[1741813395855,0.05536697,126.05,126.0,39.45155804]
[1741813396054,35.4647,126.03,126.0,39.45155804]
[1741813396247,35.4647,126.04,126.02,7.936]
[1741813396553,35.52006697,126.05,126.0,39.45155804]
[1741813396746,35.4647,126.04,126.0,39.45155804]
[1741813396946,35.4647,126.04,126.03,7.9356]
[1741813397143,35.4647,126.04,126.0,39.45155804]
[1741813397350,35.4647,126.03,126.0,39.45155804]
[1741813397658,0.05536697,126.05,126.0,39.45155804]
[1741813398053,0.05536697,126.05,126.0,70.50126461]
[1741813398257,0.05536697,126.05,126.04,7.9354]
[1741813398455,0.05536697,126.05,126.04,47.3954]
[1741813405052,0.05536697,126.05,126.04,39.46]
[1741813405257,35.4647,126.04,126.01,38.78]
[1741813405457,35.4647,126.03,126.01,38.78]
[1741813405661,35.4647,126.02,126.01,7.9367]
[1741813406051,29.40285275,126.06,126.01,7.9367]
[1741813406256,35.4647,126.02,126.01,7.9367]
[1741813406653,7.99290691,126.05,126.01,7.9367]
[1741813406859,35.4647,126.02,126.01,7.9367]
[1741813407061,0.05790691,126.05,126.0,38.77545353]
[1741813407261,35.4647,126.02,126.0,38.77545353]
[1741813407661,0.05510678,126.04,126.01,7.9372]
[1741813407959,35.4647,126.02,126.01,7.9372]
[1741813408159,0.05510678,126.04,126.01,7.9372]
[1741813408362,35.4647,126.02,126.01,7.9372]
[1741813408662,0.05510678,126.04,126.01,7.9372]
[1741813408863,35.4647,126.02,126.01,7.9372]
[1741813409462,0.05510678,126.04,126.01,7.9367]
[1741813409661,35.4647,126.02,126.0,38.49545353]
[1741813410054,0.05510678,126.04,126.0,38.49545353]
[1741813410256,35.4647,126.02,126.01,7.9373]
[1741813410457,35.4647,126.02,126.0,38.49545353]
[1741813410659,0.05510678,126.04,126.0,38.49545353]
[1741813410858,35.4647,126.02,126.0,46.43295353]
[1741813411266,0.05510678,126.04,126.0,46.43295353]
[1741813411469,35.4647,126.02,126.0,46.43295353]
[1741813411870,0.05510678,126.04,126.01,7.937]
[1741813412069,35.4647,126.02,126.01,7.937]
[1741813412369,0.05510678,126.04,126.01,7.937]
[1741813412564,35.4647,126.02,125.95,3.53]
[1741813412770,22.72881538,126.09,126.0,18.36761538]
[1741813412960,12.7761,126.05,126.01,38.24]
[1741813413564,12.7761,126.02,125.99,38.18]
[1741813413961,7.99002551,126.04,125.99,38.23498337]
[1741813414159,12.7761,126.02,125.99,38.23498337]
[1741813414572,7.9364,126.03,125.99,38.23498337]
[1741813414767,12.7761,126.02,125.99,38.23498337]
[1741813415168,7.9364,126.03,125.99,38.23498337]
[1741813415566,20.7125,126.03,125.99,38.23498337]
[1741813417167,0.05422551,126.04,125.99,38.23498337]
[1741813417871,0.05422551,126.04,126.0,7.9374]
[1741813419573,0.05422551,126.04,125.99,38.23498337]
[1741813419772,0.05422551,126.04,126.01,7.9372]
[1741813420273,0.05422551,126.04,125.99,38.23498337]
[1741813420474,0.05422551,126.04,126.02,7.9363]
[1741813420672,0.05422551,126.04,126.03,37.72]
[1741813422275,0.05422551,126.04,126.03,45.656]
[1741813423577,0.05422551,126.04,126.03,37.72]
[1741813424981,0.05422551,126.04,126.03,45.656]
[1741813425180,0.05422551,126.04,126.03,37.72]
[1741813426981,0.05422551,126.04,126.03,45.656]
[1741813427780,8.4977,126.09,126.03,37.72]
[1741813427970,4.1678,126.11,126.03,37.72]
[1741813428175,12.7761,126.08,126.05,7.9344]
[1741813428577,7.9323,126.09,126.03,37.72]
[1741813428775,12.83008659,126.08,126.05,7.99289865]
[1741813429079,12.83008659,126.08,126.05,0.05879865]
[1741813429282,0.05398659,126.08,126.07,7.9335]
[1741813429585,0.05398659,126.08,126.07,45.0935]
[1741813434379,8.659e-05,126.08,126.07,45.0935]
[1741813435790,8.659e-05,126.08,126.07,7.9335]
[1741813435991,8.659e-05,126.08,126.07,44.7535]
[1741813437386,12.77618659,126.08,126.07,36.82]
[1741813441091,12.77618659,126.08,126.05,0.05879865]
[1741813441295,12.7761,126.06,126.05,0.05879865]
[1741813441595,20.7102,126.06,126.05,0.05879865]
[1741813442190,12.7761,126.06,126.05,0.05879865]
[1741813442792,20.7102,126.06,126.05,0.05879865]
[1741813443093,8.659e-05,126.08,126.05,0.05879865]
[1741813443399,8.659e-05,126.08,126.06,44.3141]
[1741813444094,8.659e-05,126.08,126.06,36.38]
[1741813444601,8.659e-05,126.08,126.06,44.3135]
[1741813445202,8.659e-05,126.08,126.06,36.38]
[1741813445497,8.659e-05,126.08,126.07,7.9335]
[1741813447258,8.659e-05,126.08,126.06,36.38]
[1741813447502,12.7761,126.07,126.05,36.15879865]
[1741813447704,12.7761,126.07,126.05,0.05879865]
[1741813447892,8.659e-05,126.08,126.05,0.05879865]
[1741813447893,12.7761,126.06,126.05,0.05879865]
[1741813449101,12.7761,126.06,126.05,7.99349865]
[1741813450002,8.659e-05,126.08,126.06,7.934]
[1741813450199,12.7761,126.07,126.06,7.934]
[1741813450605,8.659e-05,126.08,126.05,7.99329865]
[1741813450805,12.7761,126.07,126.05,7.99329865]
[1741813450998,12.7761,126.07,126.05,0.05879865]
[1741813451399,12.7761,126.06,126.05,0.05879865]
[1741813451705,20.7102,126.06,126.05,0.05879865]
[1741813451905,8.659e-05,126.08,126.05,0.05879865]
[1741813452106,12.7761,126.06,126.05,0.05879865]
[1741813452308,8.659e-05,126.08,126.05,0.05879865]
[1741813452508,12.7761,126.06,126.05,0.05879865]